Cogmind - Beta 16 *** ADVENTURER MODE // 2025.11.18 @ 22:09:37 Player: Aristaeus Result: Destroyed by L-41 Fighter with Axe Performance ------------- Evolutions (3) 1500 Regions Visited (4) 800 Robots Destroyed (72) 360 Value Destroyed (2296) 2296 Prototype IDs (1) 20 Alien Tech Used (0) 0 Bonus (0) 0 TOTAL SCORE: 4976 Bonus ------- None Cogmind --------- Core Integrity 0/700 Matter 279/300 Energy 100/100 System Corruption 11% Temperature Cool (0) Movement Core (50) Location -7/Factory Parts ------- > --- POWER (1) -------- (None) > --- PROPULSION (4) --- (None) > --- UTILITY (5) ------ (None) > --- WEAPON (3) ------- (None) > --- INVENTORY (5) ---- Micro Nuclear Core Carbon-fiber Leg Structural Scanner ECM Suite Datajack Peak State ------------ > --- POWER ------------ Micro Nuclear Core > --- PROPULSION ------- Medium Treads Medium Treads VSS Leg Improved Titanium Leg > --- UTILITY ---------- Improved Cooling System Medium Storage Unit Transmission Jammer Advanced ECM Suite Improved Medium Armor Plating > --- WEAPON ----------- Shock Rifle Heavy Laser Advanced Assault Cannon > --- INVENTORY -------- Micro Nuclear Core Structural Scanner ECM Suite Weapon Shielding Datajack [Rating: 47] Favorites ----------- Power Ion Engine Engine Ion Engine Power Core Micro Nuclear Core Propulsion VSS Leg Treads Medium Treads Leg VSS Leg Utility Medium Storage Unit Device Structural Scanner Storage Medium Storage Unit Processor Improved Signal Interpreter Hackware Hacking Suite Protection Weapon Shielding Weapon Particle Cannon Energy Gun Shock Rifle Energy Cannon Particle Cannon Ballistic Gun Assault Rifle Ballistic Cannon Light Cannon Launcher Grenade Launcher Special Melee Weapon Datajack Build | -11 -10 -9 -8 -7 ------- Run | Yrd Mat Mat Mat Fac Slots Evolved 6 | . . 2 2 2 Power . | . . . . . Propulsion 2 | . . 1 . 1 Utility 3 | . . 1 1 1 Weapon 1 | . . . 1 . Parts Attached 63 | 6 10 22 9 16 Power 6 | 1 . 3 1 1 Engine 5 | 1 . 3 1 . Core 1 | . . . . 1 Reactor . | . . . . . Propulsion 15 | 2 2 7 1 3 Treads 2 | . . . . 2 Leg 13 | 2 2 7 1 1 Wheel . | . . . . . Hover . | . . . . . Flight . | . . . . . Utility 24 | 1 6 5 5 7 Device 11 | . 2 2 2 5 Storage 3 | 1 2 . . . Processor 1 | . . . 1 . Hackware 2 | . . 1 1 . Protection 7 | . 2 2 1 2 Artifact . | . . . . . Weapon 18 | 2 2 7 2 5 Energy Gun 8 | 1 . 4 . 3 Energy Cannon 4 | . 1 1 2 . Ballistic Gun 1 | 1 . . . . Ballistic Cannon 3 | . 1 . . 2 Launcher 1 | . . 1 . . Special Weapon . | . . . . . Impact Weapon . | . . . . . Slashing Weapon . | . . . . . Piercing Weapon . | . . . . . Special Melee Weapon 1 | . . 1 . . Unidentified Prototypes 1 | . . 1 . . Parts Lost 25 | . . 3 3 19 Power 3 | . . . 2 1 Propulsion 6 | . . 1 . 5 Utility 9 | . . . . 9 Weapon 7 | . . 2 1 4 Highest Loss Streak 7 | . . 2 2 7 To Critical Strikes . | . . . . . Average Backups 6 | . 6 8 7 4 Power . | . 1 . . . Propulsion 1 | . 2 1 1 . Utility 3 | . 2 5 5 2 Weapon . | . . . . . Tool/Special . | . . . . . Unused Backups 5 | . 2 1 . 2 Power 1 | . . . . 1 Propulsion 3 | . 2 . . 1 Utility . | . . . . . Weapon 1 | . . 1 . . Tool/Special . | . . . . . Average Slot Usage (%) 94 | . 99 99 98 86 Engine 7 | . 14 11 8 . Core 2 | . . . . 5 Treads 2 | . . . . 7 Leg 24 | . 28 32 27 17 Device 12 | . 7 7 13 18 Storage 10 | . 14 11 9 7 Hackware 2 | . . 9 9 1 Protection 6 | . 6 4 2 8 Energy Gun 8 | . 2 11 12 10 Energy Cannon 7 | . 11 8 13 3 Ballistic Cannon 6 | . 13 . . 3 Peak Build Rating 47 | 6 10 24 32 47 Average Rating 22 | 3 8 16 29 34 On Entrance 13 | . 6 9 24 29 Avg Prop Armor Cover (%) 14 | . . . . 14 Naked Turns 7 | . . . . 7 Heaviest Build 47 | 14 29 30 38 47 Greatest Support 51 | 20 20 36 39 51 Greatest Overweight (x) 9 | . 1 1 . 9 Average Overweight (x) . | . . . . . Largest Inventory Capacity 25 | 8 25 10 10 10 Average Capacity 9 | 6 9 10 10 9 Most Carried 10 | 2 10 10 10 9 Average Carried 6 | . 6 8 7 4 Final Capacity 10 | 8 10 10 10 5 Final Carried 9 | 1 9 8 9 5 Class Distribution -------------------- 44% | Mutant 14% | Infiltrator-Tank 10% | Hacker-Mutant 9% | Hacker-Tank 9% | Infiltrator-Mutant 7% | Hacker-Skirmisher Dominant Class ---------------- Mutant | -10/Materials Hacker-Mutant | -9/Materials Hacker-Skirmisher | -8/Materials Infiltrator-Tank | -7/Factory Resources | -11 -10 -9 -8 -7 ----------- Run | Yrd Mat Mat Mat Fac Matter Collected 1299 | 189 281 335 100 394 Remotely . | . . . . . Salvage Created 2305 | . 504 587 451 763 Parts 139 | . 42 40 15 42 Haulers Intercepted 1 | . 1 . . . Recyclers Shooed 1 | . 1 . . . Parts Field Recycled . | . . . . . Retrieved Matter . | . . . . . Parts Self-Destructed . | . . . . . Prevented . | . . . . . Parts Restored . | . . . . . Kills | -11 -10 -9 -8 -7 ------- Run | Yrd Mat Mat Mat Fac Combat Hostiles Destroyed 58 | . 15 18 8 17 Guns 20 | . . 8 1 11 Cannons 31 | . 15 6 6 4 AOE 5 | . . 2 1 2 Classes Destroyed 12 | . 4 2 1 5 Worker 2 | . . . . 2 Builder 2 | . . . . 2 Hauler 1 | . 1 . . . Recycler 1 | . . . . 1 Operator 1 | . . 1 . . Watcher 7 | . 3 1 1 2 Swarmer 23 | . 6 11 . 6 Grunt 21 | . 9 3 6 3 Brawler 1 | . . . 1 . Sentry 7 | . . 4 1 2 Hunter 2 | . . . . 2 Programmer 4 | . . . . 4 Best Kill Streak 8 | . 4 6 5 8 Combat Bots Only 6 | . 3 6 5 4 Max Kills in Single Turn 8 | . 1 2 1 8 Gunslinging . | . . . . . Exploded 2 | . . 2 1 2 Melee . | . . . . . Uniques/NPCs Destroyed . | . . . . . Combat | -11 -10 -9 -8 -7 -------- Run | Yrd Mat Mat Mat Fac Hostile Shots Fired 536 | . 70 104 80 282 Missed 158 | . 16 31 23 88 Hits 378 | . 54 73 57 194 Melee 24 | . . . . 24 Projectile 354 | . 54 73 57 170 Critical Strikes 19 | . 2 2 2 13 Damage Taken 4675 | . 392 684 797 2802 Core 1008 | . 62 87 142 717 Absorbed by Shields . | . . . . . Redirected to Shielding 46 | . 3 . . 43 Ignored by Resistances 1357 | . 125 208 224 800 Core Remaining (%) 81 | 100 75 78 74 . Volleys Fired 146 | . 37 36 20 53 Largest 3 | . 2 2 3 3 Hottest 183 | . 98 118 183 164 Shots Fired 303 | . 74 64 49 116 Gun 147 | . 7 35 23 82 Cannon 156 | . 67 29 26 34 Launcher . | . . . . . Special . | . . . . . Kinetic 69 | . 37 2 . 30 Thermal 124 | . 37 13 26 48 Explosive . | . . . . . Electromagnetic 110 | . . 49 23 38 Robot Hit Streak 24 | . 12 18 24 15 Robot Miss Streak 3 | . 2 3 1 3 Penetration Max . | . . . . . Secondary Targets . | . . . . . Shots Hit Robots 215 | . 48 49 42 76 Core Hits 104 | . 22 23 15 44 Critical Kills . | . . . . . Critical Parts Destroyed . | . . . . . Critical Strikes 7 | . 3 1 . 3 Burn 2 | . 1 . . 1 Blast 4 | . 2 . . 2 Corrupt 1 | . . 1 . . Melee Attacks . | . . . . . Impact . | . . . . . Slashing . | . . . . . Piercing . | . . . . . Sneak Attacks . | . . . . . Combat Hostiles . | . . . . . Follow-up Attacks . | . . . . . Damage Inflicted 5291 | . 919 1040 1105 2227 Guns 1878 | . 50 480 415 933 Cannons 2401 | . 869 417 522 593 Explosions 1012 | . . 143 168 701 Melee . | . . . . . Ramming . | . . . . . Kinetic 893 | . 380 17 . 496 Thermal 2945 | . 539 327 690 1389 Explosive . | . . . . . Electromagnetic 1453 | . . 696 415 342 Impact . | . . . . . Slashing . | . . . . . Piercing . | . . . . . Highest Corruption 11 | . . 2 . 11 Average Corruption 7 | . . 1 . 8 Corruption Purged . | . . . . . Corruption Blocked . | . . . . . Effects 59 | . . 3 . 56 Message Errors 17 | . . 1 . 16 Matter Fused 11 | . . 2 . 9 Heat Flow Errors 6 | . . . . 6 Energy Discharges 6 | . . . . 6 Parts Rejected 2 | . . . . 2 Parts Fused 1 | . . . . 1 Data Loss (minor) 7 | . . . . 7 Data Loss (major) 2 | . . . . 2 Misfires 2 | . . . . 2 Alerts 1 | . . . . 1 Misdirections 1 | . . . . 1 Weapon Failures 3 | . . . . 3 Overload Shots . | . . . . . Overflow Damage 294 | . 10 41 12 231 Projectiles 37 | . 10 1 . 26 Explosions 257 | . . 40 12 205 Melee . | . . . . . Knockbacks 12 | . 6 . . 6 Impact . | . . . . . Kinetic 11 | . 5 . . 6 Secondary 1 | . 1 . . . Self-Inflicted Damage 541 | . . 112 80 349 Shots 12 | . . 3 3 6 Rammed . | . . . . . Targets Rammed . | . . . . . Kicked . | . . . . . Crushed . | . . . . . Highest Temperature 393 | . 310 393 293 339 Average Temperature 94 | . 85 125 101 63 Received Heat Transfer 1230 | . 162 219 405 444 Effects 4 | . 2 2 . . Energy Bleed 2 | . 2 . . . Interference 2 | . . 2 . . Siege Activations . | . . . . . Martial Activations . | . . . . . Shielding Activations . | . . . . . Robots Disrupted . | . . . . . Combat Hostiles . | . . . . . Robots Corrupted 2 | . . 2 . . Combat Hostiles 2 | . . 2 . . Parts Fried 5 | . . 4 1 . Impact Corruptions . | . . . . . Robots Melted . | . . . . . Combat Hostiles . | . . . . . Parts Melted 6 | . 2 . . 4 Heat Transferred 4315 | . 1110 433 1027 1745 Parts Sabotaged . | . . . . . Parts Stolen . | . . . . . Parts Stripped . | . . . . . Power Chain Reactions 5 | . . 2 3 . Alert | -11 -10 -9 -8 -7 ------- Run | Yrd Mat Mat Mat Fac Maximum Alert Level 1 | . . 1 1 1 Low Security (%) 82 | 100 100 53 47 85 Level 1 17 | . . 46 52 14 Level 2 . | . . . . . Level 3 . | . . . . . Level 4 . | . . . . . Level 5 . | . . . . . High Security . | . . . . . Max Security . | . . . . . Peak Influence 340 | . 185 292 340 242 Initial 103 | . . 12 87 103 Average 100 | . 61 137 210 99 Influence Increases 2199 | . 519 553 409 718 Destroy 0b10 Robot/C 1160 | . 300 360 160 340 Destroy 0b10 Robot/NC 70 | . 20 10 5 35 Destroy Leader 266 | . 58 82 32 94 Successful Hack 35 | . 23 12 . . Disable Machine 189 | . 9 36 . 144 Destroy Structure 104 | . 4 23 17 60 Partial Spotted 30 | . . . . 30 Lose Combat Pursuer 345 | . 105 30 195 15 Influence Decreases 2199 | . 484 346 385 984 Entered New Map 341 | . . 23 155 163 Time Decay 1698 | . 484 293 200 721 Lost Part 160 | . . 30 30 100 Squads Dispatched 13 | . 1 3 1 8 Investigation 6 | . 1 1 1 3 Extermination 3 | . . . . 3 Reinforcement 4 | . . 2 . 2 Assault . | . . . . . Garrison . | . . . . . Intercept . | . . . . . Searches Triggered . | . . . . . Construction Impeded . | . . . . . Haulers Reinforced . | . . . . . Active Scanning Responses . | . . . . . Cargo Convoy Interrupts . | . . . . . Stealth | -11 -10 -9 -8 -7 --------- Run | Yrd Mat Mat Mat Fac Distress Signals 8 | . 4 3 . 1 Communications Jammed 1 | . . . . 1 Distress Signals . | . . . . . Times Spotted 101 | . 25 23 19 34 Peak Tracking Total 8 | . 5 7 8 4 Tactical Retreats 14 | . 4 2 7 1 Traps | -11 -10 -9 -8 -7 ------- Run | Yrd Mat Mat Mat Fac Traps Triggered 6 | . . 2 . 4 Indirectly . | . . . . . Trap Hack Attempts . | . . . . . Triggered . | . . . . . Disarmed . | . . . . . Reprogrammed . | . . . . . Reused . | . . . . . Traps Extracted . | . . . . . Installed . | . . . . . Triggered . | . . . . . Machines | -11 -10 -9 -8 -7 ---------- Run | Yrd Mat Mat Mat Fac Machines Disabled 21 | . 1 4 . 16 Max in Single Turn 14 | . 1 2 . 14 Machines Repaired . | . . . . . Machines Dismantled . | . . . . . Machines Sabotaged . | . . . . . Overloaded Fab Kills . | . . . . . Hacking | -11 -10 -9 -8 -7 --------- Run | Yrd Mat Mat Mat Fac Machines Accessed 22 | . 8 4 3 7 Terminals 19 | . 7 4 3 5 Fabricators 1 | . . . . 1 Repair Stations . | . . . . . Recycling Units 1 | . 1 . . . Scanalyzers 1 | . . . . 1 Garrison Access . | . . . . . Total Hacks 58 | . 26 9 9 14 Successful 34 | . 20 4 5 5 Failed 23 | . 6 5 4 8 Catastrophic 9 | . 2 1 2 4 Database Lockouts 1 | . . . . 1 Manual 15 | . 3 4 2 6 Terminals 50 | . 22 9 9 10 Fabricators 1 | . . . . 1 Repair Stations . | . . . . . Recycling Units 4 | . 4 . . . Scanalyzers 3 | . . . . 3 Garrison Access . | . . . . . Terminal Hacks 27 | . 16 4 5 2 Record 17 | . 11 1 5 . Robot Analysis 1 | . 1 . . . Open DSF 1 | . . . . 1 Level Access Points 2 | . 1 1 . . Branch Access Points 3 | . 1 1 . 1 Alert Level 3 | . 2 1 . . Fabricator Hacks 1 | . . . . 1 Network Status 1 | . . . . 1 Repair Station Hacks . | . . . . . Recycling Unit Hacks 4 | . 4 . . . Recycle Component 1 | . 1 . . . Process 1 | . 1 . . . Report Inventory 1 | . 1 . . . Retrieve Matter 1 | . 1 . . . Scanalyzer 2 | . . . . 2 Retrieve Study 2 | . . . . 2 Garrison Access Hacks . | . . . . . Unauthorized Hacks . | . . . . . Terminals . | . . . . . Fabricators . | . . . . . Repair Stations . | . . . . . Recycling Units . | . . . . . Scanalyzers . | . . . . . Garrison Access . | . . . . . Data Cores Recovered . | . . . . . Used . | . . . . . Hacking Detections 16 | . 6 2 3 5 Full Trace Events 10 | . 3 1 3 3 Feedback Events . | . . . . . Feedback Blocked . | . . . . . Robot Schematics Acquired . | . . . . . Robots Built . | . . . . . Authchips . | . . . . . Time . | . . . . . Total Robot Build Rating . | . . . . . Part Schematics Acquired . | . . . . . Parts Built . | . . . . . Authchips . | . . . . . Time . | . . . . . Total Part Build Rating . | . . . . . Part Studies Acquired 2 | . . . . 2 Parts Repaired . | . . . . . Time . | . . . . . Parts Recycled 1 | . 1 . . . Recycled Matter 51 | . 51 . . . Retrieved Matter 51 | . 51 . . . Retrieved Components . | . . . . . Parts Scanalyzed . | . . . . . Part Schematics Acquired . | . . . . . Parts Damaged . | . . . . . Bothacking | -11 -10 -9 -8 -7 ------------ Run | Yrd Mat Mat Mat Fac Used RIF Installer . | . . . . . Robots Hacked . | . . . . . Non-combat . | . . . . . Combat . | . . . . . Robot Hacks Applied . | . . . . . Relay Couplers Released . | . . . . . Fabnet Peak Effective % . | . . . . . Robots Rewired . | . . . . . Allies Hacked . | . . . . . Hacks Repelled . | . . . . . Allies | -11 -10 -9 -8 -7 -------- Run | Yrd Mat Mat Mat Fac Total Allies . | . . . . . Largest Group . | . . . . . Highest-Rated Group . | . . . . . Highest-Rated Ally . | . . . . . Total Orders . | . . . . . Ally Attacks . | . . . . . Total Damage . | . . . . . Kills . | . . . . . Allies Corrupted . | . . . . . Allies Melted . | . . . . . Intel | -11 -10 -9 -8 -7 ------- Run | Yrd Mat Mat Mat Fac Active Infowar (turns) 2594 | . 785 453 289 1067 Terrain 204 | . 185 . . 19 Structural 1723 | . 600 437 289 397 Jamming 649 | . . . . 649 ECM 261 | . . 16 . 245 Robot Analysis Total 1 | . 1 . . . Derelict Logs Recovered . | . . . . . Drone Launches . | . . . . . Drone Recoveries . | . . . . . Exploration | -11 -10 -9 -8 -7 ------------- Run | Yrd Mat Mat Mat Fac Turns Passed 4588 | 60 1553 682 406 1887 Spaces Moved 2369 | 46 801 414 265 843 Core 16 | 11 . . . 5 Treads 27 | . . . . 27 Legs 2326 | 35 801 414 265 811 Wheels . | . . . . . Hover . | . . . . . Flight . | . . . . . Fastest Speed 50 | 50 120 90 90 97 Average Speed 147 | 103 169 113 93 161 Slowest Speed 500 | 120 190 190 100 500 Overloaded Moves . | . . . . . Propulsion Burnouts . | . . . . . Robots Hopped . | . . . . . Potential Cave-ins . | . . . . . Cave-ins Triggered . | . . . . . Exploration Rate (%) 39 | 4 96 48 16 31 Regions Visited 4 Branch Regions . Pre-discovered Areas . | . . . . . Known Exits Taken 3 | . 1 1 1 . Unknown Exits Taken 1 | 1 . . . . Scrap Searched . | . . . . . Spaces Dug . | . . . . . Terrain Destroyed 98 | . . 25 18 55 Melee . | . . . . . Projectile 6 | . . . 2 4 AOE 92 | . . 25 16 51 Terrain Rammed . | . . . . . Walls Destroyed . | . . . . . Machines Disabled . | . . . . . Actions | -11 -10 -9 -8 -7 --------- Run | Yrd Mat Mat Mat Fac Total 3187 | 58 924 557 381 1267 Wait 485 | . 47 44 78 316 Move 2365 | 45 800 413 264 843 Hop . | . . . . . Pick Up 64 | 7 15 16 8 18 Fast Attach . | . . . . . Attach 42 | 6 6 6 4 20 Detach 8 | . 5 . . 3 Swap 44 | . 7 27 5 5 Drop 28 | . 7 15 2 4 Fire 146 | . 37 36 20 53 Melee . | . . . . . Ram . | . . . . . Kick . | . . . . . Crush . | . . . . . Escape Stasis 5 | . . . . 5 Rewire . | . . . . . Trap . | . . . . . Miscellaneous . | . . . . . Route ------- -11/Scrapyard -10/Materials (discovered 4 exits: *Mat x3 / *Min) -9/Materials (discovered 6 exits: *Mat x3 / Min / *Sto x2) -8/Materials -7/Factory (discovered 3 exits: [*Fac] / Low x2) History --------- Turn | Location | Event 6 | -11/Scrapyard | Discovered new exit (range 15) 61 | -11/Scrapyard | Entered Materials 302 | -10/Materials | Discovered new exit (range 9) 306 | -10/Materials | Build established: Mutant 447 | -10/Materials | Discovered new exit (range 15) 837 | -10/Materials | Identified exit to Mines 878 | -10/Materials | Discovered new exit (range 13) 1081 | -10/Materials | Discovered new exit (range 13) 1559 | -10/Materials | Identified exit to Materials 1614 | -10/Materials | Entered another Materials area 1614 | -9/Materials | Evolved 2 slots: Propulsion x1, Utility x1 1619 | -9/Materials | Discovered new exit (range 14) 1710 | -9/Materials | Identified exit to Mines 1710 | -9/Materials | Identified exit to Storage 1826 | -9/Materials | Identified exit to Materials 2296 | -9/Materials | Entered another Materials area 2296 | -8/Materials | Evolved 2 slots: Utility x1, Weapon x1 2572 | -8/Materials | Build established: Hacker-Skirmisher 2674 | -8/Materials | Discovered new exit (range 6) 2700 | -8/Materials | Identified exit to Factory 2702 | -8/Materials | Entered Factory 2702 | -7/Factory | Evolved 2 slots: Propulsion x1, Utility x1 2714 | -7/Factory | Identified exit to DSF 2885 | -7/Factory | Build established: Hacker-Tank 3175 | -7/Factory | Lost 3 parts (2u1w) 3340 | -7/Factory | Build established: Mutant 3478 | -7/Factory | Lost 5 parts (2n3u) 3781 | -7/Factory | Central database locked down 3912 | -7/Factory | System corruption reached 10% 4039 | -7/Factory | Build established: Infiltrator-Tank 4389 | -7/Factory | Identified exit to Lower Caves 4489 | -7/Factory | Discovered new exit (range 15) 4564 | -7/Factory | Core integrity fell below 50% 4579 | -7/Factory | Core integrity fell below 20% 4589 | -7/Factory | Destroyed by L-41 Fighter with Axe Last Messages --------------- 04531_ Critical hit (Burn: +37). 04532_ Med. Treads destroyed. 04534_ KUYJPX/VEKFF/|5A1BSKAA1J, 04534_ Med. Treads severed. 04535_ L-41 Fighter suffers critical hit (Burn). 04536_ Hvy. Laser severed. 04537_ Mic. Nuclear Core+ destroyed. 04539_ VSS Leg destroyed. 04545_ M-13 Machinist repairs G-47 Trooper. 04549_ H8ROM&UAQBOQQSYQ9X %0Z,|<4 04551_ M-13 Machinist repairs L-41 Fighter. 04552_ Imp. Medium Armor Plating destroyed. 04553_ Critical hit (Burn: +37). 04556_ Imp. Cooling System severed. 04558_ Transmission Jammer destroyed. 04559_ M-13 Machinist repairs G-47 Trooper. 04560_ Adv. ECM Suite severed. 04568_ M-13 Machinist repairs L-41 Fighter. 04570_ X7TANLFKWGT0:1XJ8|S %T9